fUSD/lending_fUSD_20260606
["ID","MTS","AMOUNT","RATE_DAILY","PERIOD"]
[424307697,1780759866000,-234.97453491,0.0003351,11]
[424307705,1780759866000,-13002.73,0.00033577,30]
[424307691,1780759866000,-3414.96283955,0.00033462,2]
[424307701,1780759866000,-716.0,0.00033545,9]
[424307698,1780759866000,-3414.96283955,0.0003352,2]
[424307687,1780759866000,-3414.96283955,0.00033442,2]
[424307689,1780759866000,-585.0,0.00033452,30]
[424307709,1780759866000,-3414.96283955,0.00033615,2]
[424307704,1780759866000,-183.91632608,0.00033566,12]
[424307707,1780759866000,-3414.96283955,0.00033596,2]
[424307721,1780759866000,-341.7,0.000337,120]
[424307706,1780759866000,-3414.96283955,0.00033577,2]
[424307716,1780759866000,-575.26,0.00033692,2]
[424307713,1780759866000,-3414.96283955,0.00033689,2]
[424307710,1780759866000,-3414.96283955,0.00033634,2]
[424307715,1780759866000,-643.95,0.00033692,2]
[424307714,1780759866000,-573.03,0.00033692,2]
[424307717,1780759866000,-575.26,0.00033693,2]
[424307718,1780759866000,-482.01,0.00033693,2]
[424307712,1780759866000,-3414.96283955,0.00033671,2]
[424307711,1780759866000,-3414.96283955,0.00033652,2]
[424307720,1780759866000,-572.84,0.00033699,2]
[424307730,1780759866000,-3414.96283955,0.00033761,2]
[424307690,1780759866000,-300.0,0.00033458,10]
[424307708,1780759866000,-500.0,0.00033597,2]
[424307688,1780759866000,-948.0,0.00033452,30]
[424307661,1780759866000,-3414.96283955,0.0003332,2]
[424307686,1780759866000,-204.15670656,0.00033434,2]
[424307662,1780759866000,-300.0,0.00033324,10]
[424307664,1780759866000,-300.0,0.00033324,10]
[424307669,1780759866000,-2972.0,0.00033334,30]
[424307670,1780759866000,-4110.0,0.00033334,30]
[424307667,1780759866000,-1092.0,0.00033334,30]
[424307665,1780759866000,-300.0,0.00033324,10]
[424307666,1780759866000,-936.0,0.00033334,30]
[424307668,1780759866000,-675.0,0.00033334,30]
[424307671,1780759866000,-151.0,0.00033337,7]
[424307683,1780759866000,-158.886397,0.000334,9]
[424307674,1780759866000,-539.0,0.0003334,30]
[424307678,1780759866000,-1747.0,0.0003334,30]
[424307681,1780759866000,-3414.96283955,0.00033361,2]
[424307672,1780759866000,-151.0,0.00033337,7]
[424307673,1780759866000,-151.0,0.00033337,7]
[424307680,1780759866000,-3414.96283955,0.0003334,2]
[424307679,1780759866000,-408.0,0.0003334,30]
[424307675,1780759866000,-633.0,0.0003334,30]
[424307676,1780759866000,-3368.0,0.0003334,30]
[424307682,1780759866000,-3414.96283955,0.00033381,2]
[424307677,1780759866000,-661.0,0.0003334,30]
[424307693,1780759866000,-3414.96283955,0.00033481,2]
[424307685,1780759866000,-3414.96283955,0.00033422,2]
[424307695,1780759866000,-1235.34268285,0.000335,2]
[424307696,1780759866000,-3414.96283955,0.00033501,2]
[424307694,1780759866000,-179.97120458,0.0003349,2]
[424307684,1780759866000,-3414.96283955,0.00033402,2]
[424307692,1780759866000,-10863.0,0.00033477,5]
[424307731,1780759866000,-3414.96283955,0.00033778,2]
[424307663,1780759866000,-300.0,0.00033324,10]
[424307722,1780759866000,-341.7,0.000337,20]
[424307757,1780759866000,-357.73865312,0.000339,120]
[424307755,1780759866000,-189.07899817,0.000339,120]
[424307767,1780759866000,-1497.84654407,0.000339,120]
[424307760,1780759866000,-462.50806187,0.000339,120]
[424307762,1780759866000,-467.25375647,0.000339,120]
[424307764,1780759866000,-346.99509557,0.000339,120]
[424307765,1780759866000,-1277.97431797,0.000339,120]
[424307763,1780759866000,-365.74604838,0.000339,120]
[424307766,1780759866000,-696.13358793,0.000339,120]
[424307761,1780759866000,-222.98709283,0.000339,120]
[424307770,1780759866000,-1483.89946399,0.000339,120]
[424307769,1780759866000,-636.93841346,0.000339,120]
[424307768,1780759866000,-536.49353088,0.000339,120]
[424307756,1780759866000,-458.61020033,0.000339,120]
[424307772,1780759866000,-1276.64299593,0.000339,120]
[424307777,1780759866000,-3414.96283955,0.00033933,2]
[424307776,1780759866000,-323.27180603,0.00033921,7]
[424307771,1780759866000,-285.03397935,0.000339,120]
[424307781,1780759866000,-3414.96283955,0.00033983,2]
[424307779,1780759866000,-3414.96283955,0.00033967,2]
[424307773,1780759866000,-1918.95437522,0.000339,120]
[424307784,1780759866000,-500.0,0.00034,120]
[424307775,1780759866000,-3414.96283955,0.00033917,2]
[424307774,1780759866000,-953.76627712,0.000339,120]
[424307785,1780759866000,-750.0,0.00034,2]
[424307778,1780759866000,-3414.96283955,0.0003395,2]
[424307780,1780759866000,-167.0,0.0003398,11]
[424307732,1780759866000,-3414.96283955,0.00033796,2]
[424307783,1780759866000,-600.00000008,0.00034,2]
[424307751,1780759866000,-285.37755585,0.000339,120]
[424307782,1780759866000,-3414.96283955,0.00034,2]
[424307753,1780759866000,-1049.40353793,0.000339,120]
[424307754,1780759866000,-179.8790631,0.000339,120]
[424307719,1780759866000,-300.0,0.00033699,14]
[424307724,1780759866000,-3414.96283955,0.00033725,2]
[424307728,1780759866000,-194.938589,0.0003375,10]
[424307726,1780759866000,-3414.96283955,0.00033743,2]
[424307729,1780759866000,-177.440127,0.0003375,10]
[424307723,1780759866000,-3414.96283955,0.00033707,2]
[424307727,1780759866000,-151.0,0.00033746,2]
[424307733,1780759866000,-200.0,0.000338,13]
[424307736,1780759866000,-150.0,0.00033815,2]
[424307735,1780759866000,-3414.96283955,0.00033814,2]
[424307742,1780759866000,-179.97120458,0.00033838,2]
[424307739,1780759866000,-150.0,0.00033815,2]
[424307741,1780759866000,-3414.96283955,0.00033831,2]
[424307725,1780759866000,-150.337385,0.00033739,2]
[424307737,1780759866000,-150.0,0.00033815,2]
[424307738,1780759866000,-150.0,0.00033815,2]
[424307752,1780759866000,-444.14237252,0.000339,120]
[424307759,1780759866000,-414.95368402,0.000339,120]
[424307750,1780759866000,-3414.96283955,0.000339,2]
[424307749,1780759866000,-3414.96283955,0.00033883,2]
[424307748,1780759866000,-572.29,0.00033875,2]
[424307747,1780759866000,-3414.96283955,0.00033865,2]
[424307744,1780759866000,-573.03,0.00033858,2]
[424307740,1780759866000,-150.0,0.00033815,2]
[424307745,1780759866000,-152.0,0.00033865,8]
[424307743,1780759866000,-3414.96283955,0.00033848,2]
[424307758,1780759866000,-170.4470539,0.000339,120]
[424307734,1780759866000,-305.57820441,0.000338,120]
[424307746,1780759866000,-152.0,0.00033865,3]
[424307828,1780759867000,-390.0,0.00034348,2]
[424307818,1780759867000,-1092.0,0.00034334,30]
[424307823,1780759867000,-633.0,0.0003434,30]
[424307817,1780759867000,-936.0,0.00034334,30]
[424307813,1780759867000,-390.0,0.00034311,2]
[424307821,1780759867000,-4110.0,0.00034334,30]
[424307837,1780759867000,-543.0,0.00034353,2]
[424307825,1780759867000,-661.0,0.0003434,30]
[424307830,1780759867000,-200.0,0.00034353,2]
[424307835,1780759867000,-500.0,0.00034353,2]
[424307815,1780759867000,-382.0,0.00034321,2]
[424307820,1780759867000,-2972.0,0.00034334,30]
[424307824,1780759867000,-3368.0,0.0003434,30]
[424307836,1780759867000,-500.0,0.00034353,2]
[424307832,1780759867000,-500.0,0.00034353,2]
[424307826,1780759867000,-1747.0,0.0003434,30]
[424307833,1780759867000,-500.0,0.00034353,2]
[424307834,1780759867000,-500.0,0.00034353,2]
[424307827,1780759867000,-408.0,0.0003434,30]
[424307829,1780759867000,-200.0,0.00034353,2]
[424307850,1780759867000,-200.0,0.00034353,2]
[424307845,1780759867000,-200.0,0.00034353,2]
[424307838,1780759867000,-200.0,0.00034353,2]
[424307816,1780759867000,-172.64,0.00034332,7]
[424307848,1780759867000,-200.0,0.00034353,2]
[424307831,1780759867000,-500.0,0.00034353,2]
[424307819,1780759867000,-675.0,0.00034334,30]
[424307808,1780759867000,-376.0,0.00034272,2]
[424307812,1780759867000,-382.0,0.00034297,2]
[424307842,1780759867000,-200.0,0.00034353,2]
[424307787,1780759867000,-151.0,0.00034043,14]
[424307790,1780759867000,-2000.0,0.00034053,2]
[424307786,1780759867000,-274.279975,0.00034,120]
[424307792,1780759867000,-2000.0,0.00034053,2]
[424307789,1780759867000,-1461527.25703369,0.00034046,2]
[424307796,1780759867000,-716.0,0.00034079,9]
[424307793,1780759867000,-10000.0,0.00034053,2]
[424307797,1780759867000,-4204.8,0.00034182,7]
[424307791,1780759867000,-10000.0,0.00034053,2]
[424307794,1780759867000,-400.0,0.00034061,120]
[424307795,1780759867000,-499.7498724,0.00034061,120]
[424307822,1780759867000,-539.0,0.0003434,30]
[424307799,1780759867000,-179.97120457,0.00034186,2]
[424307810,1780759867000,-390.0,0.00034285,2]
[424307798,1780759867000,-164.68866912,0.00034186,2]
[424307802,1780759867000,-2322.0,0.00034193,11]
[424307806,1780759867000,-164.0,0.00034246,11]
[424307811,1780759867000,-376.0,0.00034296,2]
[424307801,1780759867000,-150.0,0.0003419,2]
[424307805,1780759867000,-347.22959799,0.00034228,2]
[424307807,1780759867000,-1000.0,0.00034247,120]
[424307804,1780759867000,-152.4757425,0.00034212,7]
[424307803,1780759867000,-102308.95286864,0.00034203,15]
[424307800,1780759867000,-194.000028,0.00034186,2]
[424307814,1780759867000,-390.0,0.00034314,2]
[424307809,1780759867000,-376.0,0.00034273,2]
[424307851,1780759867000,-200.0,0.00034353,2]
[424307788,1780759867000,-1589.004228,0.00034046,2]
[424307846,1780759867000,-200.0,0.00034353,2]
[424307874,1780759867000,-200.0,0.00034353,2]
[424307875,1780759867000,-200.0,0.00034353,2]
[424307879,1780759867000,-200.0,0.00034353,2]
[424307891,1780759867000,-161.0,0.00034353,2]
[424307883,1780759867000,-200.0,0.00034353,2]
[424307880,1780759867000,-200.0,0.00034353,2]
[424307881,1780759867000,-200.0,0.00034353,2]
[424307888,1780759867000,-200.0,0.00034353,2]
[424307889,1780759867000,-200.0,0.00034353,2]
[424307890,1780759867000,-200.0,0.00034353,2]
[424307886,1780759867000,-200.0,0.00034353,2]
[424307887,1780759867000,-200.0,0.00034353,2]
[424307873,1780759867000,-200.0,0.00034353,2]
[424307884,1780759867000,-200.0,0.00034353,2]
[424307893,1780759867000,-376.0,0.00034365,2]
[424307897,1780759867000,-390.0,0.00034396,2]
[424307898,1780759867000,-376.0,0.00034419,2]
[424307894,1780759867000,-390.0,0.0003437,2]
[424307892,1780759867000,-382.0,0.00034354,2]
[424307896,1780759867000,-382.0,0.00034379,2]
[424307895,1780759867000,-390.0,0.00034373,2]
[424307899,1780759867000,-390.0,0.00034432,2]
[424307901,1780759867000,-948.0,0.00034452,30]
[424307902,1780759867000,-585.0,0.00034452,30]
[424307900,1780759867000,-376.0,0.00034433,2]
[424307843,1780759867000,-200.0,0.00034353,2]
[424307885,1780759867000,-200.0,0.00034353,2]
[424307876,1780759867000,-200.0,0.00034353,2]
[424307882,1780759867000,-200.0,0.00034353,2]
[424307877,1780759867000,-200.0,0.00034353,2]
[424307847,1780759867000,-200.0,0.00034353,2]
[424307867,1780759867000,-200.0,0.00034353,2]
[424307840,1780759867000,-200.0,0.00034353,2]
[424307841,1780759867000,-200.0,0.00034353,2]
[424307849,1780759867000,-200.0,0.00034353,2]
[424307844,1780759867000,-200.0,0.00034353,2]
[424307839,1780759867000,-200.0,0.00034353,2]
[424307853,1780759867000,-200.0,0.00034353,2]
[424307864,1780759867000,-200.0,0.00034353,2]
[424307854,1780759867000,-200.0,0.00034353,2]
[424307855,1780759867000,-169.0,0.00034353,2]
[424307863,1780759867000,-200.0,0.00034353,2]
[424307865,1780759867000,-200.0,0.00034353,2]
[424307858,1780759867000,-200.0,0.00034353,2]
[424307852,1780759867000,-200.0,0.00034353,2]
[424307878,1780759867000,-200.0,0.00034353,2]
[424307872,1780759867000,-200.0,0.00034353,2]
[424307860,1780759867000,-200.0,0.00034353,2]
[424307871,1780759867000,-200.0,0.00034353,2]
[424307870,1780759867000,-200.0,0.00034353,2]
[424307868,1780759867000,-200.0,0.00034353,2]
[424307866,1780759867000,-200.0,0.00034353,2]
[424307869,1780759867000,-200.0,0.00034353,2]
[424307862,1780759867000,-200.0,0.00034353,2]
[424307859,1780759867000,-200.0,0.00034353,2]
[424307857,1780759867000,-200.0,0.00034353,2]
[424307861,1780759867000,-200.0,0.00034353,2]
[424307856,1780759867000,-200.0,0.00034353,2]
[424307948,1780759868000,-382.0,0.00034534,2]
[424307945,1780759868000,-390.0,0.00034527,2]
[424307952,1780759868000,-151.0,0.00034538,7]
[424307946,1780759868000,-376.0,0.00034527,2]
[424307943,1780759868000,-641.32,0.00034522,2]
[424307934,1780759868000,-382.0,0.00034515,2]
[424307938,1780759868000,-390.0,0.0003452,2]
[424307937,1780759868000,-376.0,0.00034518,2]
[424307936,1780759868000,-376.0,0.00034515,2]
[424307935,1780759868000,-376.0,0.00034515,2]
[424307950,1780759868000,-376.0,0.00034538,2]
[424307939,1780759868000,-433.44,0.00034521,120]
[424307951,1780759868000,-151.0,0.00034538,7]
[424307960,1780759868000,-150.0,0.0003455,2]
[424307942,1780759868000,-186.51,0.00034522,2]
[424307944,1780759868000,-390.0,0.00034526,2]
[424307947,1780759868000,-382.0,0.00034529,2]
[424307949,1780759868000,-376.0,0.00034534,2]
[424307954,1780759868000,-382.0,0.00034545,2]
[424307953,1780759868000,-249.0,0.0003454,15]
[424307964,1780759868000,-390.0,0.00034559,2]
[424307965,1780759868000,-164.0,0.00034564,11]
[424307955,1780759868000,-390.0,0.00034546,2]
[424307961,1780759868000,-150.0,0.0003455,2]
[424307958,1780759868000,-150.0,0.0003455,2]
[424307956,1780759868000,-376.0,0.00034546,2]
[424307932,1780759868000,-350.0,0.0003451,36]
[424307941,1780759868000,-390.0,0.00034521,2]
[424307930,1780759868000,-156.47576002,0.000345,120]
[424307904,1780759868000,-407.0,0.00034453,2]
[424307940,1780759868000,-272.55,0.00034521,120]
[424307903,1780759868000,-407.0,0.00034453,2]
[424307906,1780759868000,-150.0,0.00034453,2]
[424307907,1780759868000,-150.33702773,0.00034453,2]
[424307909,1780759868000,-150.0,0.00034453,2]
[424307905,1780759868000,-407.0,0.00034453,2]
[424307910,1780759868000,-150.0,0.00034453,2]
[424307908,1780759868000,-150.0,0.00034453,2]
[424307912,1780759868000,-500.0,0.00034453,2]
[424307915,1780759868000,-400.0,0.00034453,2]
[424307913,1780759868000,-500.0,0.00034453,2]
[424307911,1780759868000,-500.0,0.00034453,2]
[424307914,1780759868000,-400.0,0.00034453,2]
[424307917,1780759868000,-390.0,0.00034455,2]
[424307928,1780759868000,-390.0,0.00034496,2]
[424307920,1780759868000,-390.0,0.00034462,2]
[424307916,1780759868000,-400.0,0.00034453,2]
[424307918,1780759868000,-376.0,0.00034455,2]
[424307927,1780759868000,-376.0,0.00034493,2]
[424307919,1780759868000,-376.0,0.00034455,2]
[424307924,1780759868000,-390.0,0.00034489,2]
[424307925,1780759868000,-433.0,0.0003449,10]
[424307921,1780759868000,-376.0,0.00034472,2]
[424307923,1780759868000,-390.0,0.00034482,2]
[424307922,1780759868000,-390.0,0.00034482,2]
[424307926,1780759868000,-376.0,0.0003449,2]
[424307931,1780759868000,-376.0,0.00034506,2]
[424307929,1780759868000,-20856.44810492,0.000345,30]
[424307933,1780759868000,-482.15,0.00034514,2]
[424307962,1780759868000,-382.0,0.00034552,2]
[424307963,1780759868000,-376.0,0.00034552,2]
[424307957,1780759868000,-376.0,0.0003455,2]
[424307993,1780759868000,-376.0,0.00034671,2]
[424307995,1780759868000,-376.0,0.00034681,2]
[424307992,1780759868000,-376.0,0.00034668,2]
[424307994,1780759868000,-183.45,0.0003468,2]
[424308003,1780759868000,-256.73998,0.000347,12]
[424308004,1780759868000,-160.175394,0.000347,12]
[424308002,1780759868000,-382.0,0.00034699,2]
[424308005,1780759868000,-256.834091,0.000347,12]
[424308006,1780759868000,-353.19499,0.000347,12]
[424308009,1780759868000,-213.55,0.000347,2]
[424308007,1780759868000,-1042.168554,0.000347,12]
[424308010,1780759868000,-200.0,0.000347,10]
[424308008,1780759868000,-176.93509,0.000347,12]
[424308012,1780759868000,-376.0,0.00034704,2]
[424308011,1780759868000,-1094.2,0.00034703,90]
[424308014,1780759868000,-376.0,0.00034715,2]
[424308024,1780759868000,-376.0,0.00034733,2]
[424308013,1780759868000,-382.0,0.00034705,2]
[424308016,1780759868000,-376.0,0.00034718,2]
[424308018,1780759868000,-376.0,0.00034727,2]
[424308017,1780759868000,-390.0,0.00034721,2]
[424308015,1780759868000,-390.0,0.00034717,2]
[424308019,1780759868000,-376.0,0.00034728,2]
[424308020,1780759868000,-376.0,0.00034729,2]
[424307959,1780759868000,-150.0,0.0003455,2]
[424308023,1780759868000,-376.0,0.00034733,2]
[424308021,1780759868000,-376.0,0.00034732,2]
[424308000,1780759868000,-481.56,0.00034697,2]
[424307996,1780759868000,-376.0,0.00034682,2]
[424308022,1780759868000,-390.0,0.00034733,2]
[424307998,1780759868000,-390.0,0.0003469,2]
[424307990,1780759868000,-376.0,0.00034661,2]
[424307967,1780759868000,-390.0,0.00034574,2]
[424307976,1780759868000,-390.0,0.00034613,2]
[424307968,1780759868000,-382.0,0.00034576,2]
[424307966,1780759868000,-376.0,0.00034565,2]
[424307970,1780759868000,-376.0,0.00034579,2]
[424307969,1780759868000,-390.0,0.00034579,2]
[424307974,1780759868000,-716.0,0.00034613,10]
[424307971,1780759868000,-390.0,0.00034587,2]
[424307972,1780759868000,-390.0,0.00034587,2]
[424307973,1780759868000,-390.0,0.00034607,2]
[424307978,1780759868000,-164.0,0.00034618,11]
[424307977,1780759868000,-390.0,0.00034614,2]
[424307987,1780759868000,-390.0,0.00034646,2]
[424307975,1780759868000,-390.0,0.00034613,2]
[424307986,1780759868000,-390.0,0.00034646,2]
[424307988,1780759868000,-390.0,0.0003465,2]
[424307991,1780759868000,-382.0,0.00034665,2]
[424308001,1780759868000,-643.95,0.00034697,2]
[424307997,1780759868000,-390.0,0.00034687,2]
[424307984,1780759868000,-390.0,0.00034636,2]
[424307982,1780759868000,-382.0,0.00034632,2]
[424307999,1780759868000,-390.0,0.0003469,2]
[424307979,1780759868000,-390.0,0.00034626,2]
[424307983,1780759868000,-390.0,0.00034634,2]
[424307985,1780759868000,-390.0,0.00034639,2]
[424307981,1780759868000,-390.0,0.00034632,2]
[424307989,1780759868000,-376.0,0.0003466,2]
[424307980,1780759868000,-390.0,0.00034629,2]
[424308048,1780759869000,-500.0,0.00034838,2]
[424308049,1780759869000,-500.0,0.00034838,2]
[424308045,1780759869000,-500.0,0.00034838,2]
[424308041,1780759869000,-500.0,0.00034838,2]
[424308042,1780759869000,-500.0,0.00034838,2]
[424308040,1780759869000,-237.68279097,0.00034833,7]
[424308034,1780759869000,-11849.55260209,0.00034779,10]
[424308033,1780759869000,-1045.0498992,0.00034779,10]
[424308032,1780759869000,-164.0,0.00034772,11]
[424308035,1780759869000,-1500.0,0.00034795,2]
[424308038,1780759869000,-929.0,0.00034801,3]
[424308031,1780759869000,-700.0,0.0003477,2]
[424308039,1780759869000,-250.0,0.00034806,7]
[424308027,1780759869000,-390.0,0.00034755,2]
[424308037,1780759869000,-200.0,0.000348,13]
[424308036,1780759869000,-1732.82,0.00034796,2]
[424308029,1780759869000,-21495.10834391,0.00034763,2]
[424308028,1780759869000,-300.0,0.0003476,30]
[424308026,1780759869000,-376.0,0.00034747,2]
[424308025,1780759869000,-382.0,0.00034734,2]
[424308050,1780759869000,-500.0,0.00034838,2]
[424308030,1780759869000,-400.0,0.0003477,2]
[424308046,1780759869000,-500.0,0.00034838,2]
[424308058,1780759869000,-500.0,0.00034838,2]
[424308047,1780759869000,-500.0,0.00034838,2]
[424308071,1780759869000,-863560.44195872,0.000349,3]
[424308069,1780759869000,-520.2442373,0.0003488,120]
[424308070,1780759869000,-193.9,0.00034887,2]
[424308068,1780759869000,-300.0,0.0003484,30]
[424308067,1780759869000,-580.28,0.00034838,2]
[424308066,1780759869000,-500.0,0.00034838,2]
[424308063,1780759869000,-500.0,0.00034838,2]
[424308043,1780759869000,-500.0,0.00034838,2]
[424308064,1780759869000,-500.0,0.00034838,2]
[424308061,1780759869000,-500.0,0.00034838,2]
[424308065,1780759869000,-500.0,0.00034838,2]
[424308062,1780759869000,-500.0,0.00034838,2]
[424308044,1780759869000,-500.0,0.00034838,2]
[424308052,1780759869000,-500.0,0.00034838,2]
[424308053,1780759869000,-500.0,0.00034838,2]
[424308057,1780759869000,-500.0,0.00034838,2]
[424308051,1780759869000,-500.0,0.00034838,2]
[424308054,1780759869000,-500.0,0.00034838,2]
[424308056,1780759869000,-870.42,0.00034838,2]
[424308060,1780759869000,-500.0,0.00034838,2]
[424308059,1780759869000,-500.0,0.00034838,2]
[424308055,1780759869000,-500.0,0.00034838,2]
[424308073,1780759870000,-3103.0,0.000349,3]
[424308076,1780759870000,-319.59,0.00013698,2]
[424308072,1780759870000,-19051.22006916,0.000349,3]
[424308074,1780759870000,-500.0,0.00013698,2]
[424308077,1780759870000,-500.0,0.00013698,2]
[424308075,1780759870000,-180.41,0.00013698,2]
[424308078,1780759870000,-550.53401376,0.00013698,2]
[424308084,1780759870000,-152.0,0.00029213,3]
[424308079,1780759870000,-879.70959209,0.000349,3]
[424308085,1780759870000,-120536.11777183,0.000349,3]
[424308086,1780759870000,-47028.96244075,0.000349,3]
[424308081,1780759870000,-1026.01269076,0.000349,3]
[424308082,1780759870000,-557.62342837,0.0001399,2]
[424308080,1780759870000,-565.0,0.00029589,14]
[424308083,1780759870000,-59442.37657163,0.0001399,2]
[424308089,1780759871000,-303.26301532,0.00027397,10]
[424308088,1780759871000,-872.84991566,0.000349,3]
[424308087,1780759871000,-48.99037249,0.000349,3]
[424308093,1780759872000,152.0,7.608e-05,7]
[424308092,1780759872000,152.0,7.605e-05,7]
[424308091,1780759872000,152.0,7.605e-05,7]
[424308090,1780759872000,337.80874,0.00028385,120]
[424308094,1780759873000,152.0,7.608e-05,7]
[424308095,1780759873000,152.0,0.00029498,120]
[424308096,1780759873000,181.165848,0.00029527,120]
[424308097,1780759888000,1053.094144,0.00028549,120]
[424308098,1780759892000,1037.769185,0.00028549,120]
[424308100,1780759902000,891.905293,0.00028385,120]
[424308109,1780760233000,152.0,7.609e-05,7]
[424308108,1780760233000,152.0,7.607e-05,7]
[424308110,1780760235000,152.0,0.0002941,120]
[424308111,1780760254000,152.0,7.609e-05,7]
[424308112,1780760259000,281.8,0.00030082,120]
[424308114,1780760367000,644.59,0.00028825,120]
[424308113,1780760367000,644.59,0.00027658,120]
[424308115,1780760368000,644.59,0.00029862,120]
[424308116,1780760485000,295.83973116,0.0001,3]
[424308118,1780760497000,500.0,0.00028825,120]
[424308117,1780760497000,500.0,0.00027658,120]
[424308119,1780760497000,500.0,0.00029862,120]
[424308121,1780760577000,689.93,0.00027658,120]
[424308123,1780760578000,689.93,0.00029862,120]
[424308122,1780760578000,689.93,0.00028825,120]
[424308124,1780760708000,279.8692348,6.881e-05,7]
[424308125,1780760727000,152.0,7.61e-05,7]
[424308127,1780760766000,564.02,0.00028825,120]
[424308126,1780760766000,564.02,0.00028825,120]
[424308130,1780760767000,564.10838733,0.00028825,120]
[424308129,1780760767000,564.02,0.00028825,120]
[424308128,1780760767000,564.02,0.00028825,120]
[424308131,1780760789000,513.66,0.00027658,120]
[424308132,1780760789000,513.66,0.00028825,120]
[424308133,1780760790000,513.66,0.00029862,120]
[424308134,1780760803000,204.35952237,0.0001,3]
[424308135,1780760825000,152.0,7.609e-05,7]
[424308140,1780760867000,766.20964866,0.0001,3]
[424308146,1780760954000,-12.77,6.11e-05,2]
[424308145,1780760954000,-154.98,6.11e-05,2]
[424308147,1780760960000,162.49923603,6.104e-05,2]
[424308154,1780761009000,-189.75744947,6.357e-05,2]
[424308150,1780761009000,-4347.65104202,6.11e-05,2]
[424308151,1780761009000,-618.26895798,6.11e-05,2]
[424308152,1780761009000,-150.0,6.17e-05,2]
[424308153,1780761009000,-150.0,6.231e-05,2]
[424308155,1780761009000,-500.0,6.357e-05,2]
[424308157,1780761009000,-223.75749444,6.357e-05,2]
[424308158,1780761009000,-500.0,6.357e-05,2]
[424308160,1780761009000,-500.0,6.357e-05,2]
[424308159,1780761009000,-500.0,6.357e-05,2]
[424308161,1780761009000,-37.7466068,6.357e-05,2]
[424308156,1780761009000,-500.0,6.357e-05,2]
[424308165,1780761031000,-462.2533932,6.357e-05,2]
[424308167,1780761031000,-500.0,6.357e-05,2]
[424308166,1780761031000,-500.0,6.357e-05,2]
[424308168,1780761031000,-500.0,6.357e-05,2]
[424308169,1780761031000,-500.0,6.357e-05,2]
[424308170,1780761031000,-437.7466068,6.357e-05,2]
[424308220,1780761032000,-1762.27580261,6.357e-05,2]
[424308196,1780761032000,-1762.27580261,6.357e-05,2]
[424308194,1780761032000,-1762.27580261,6.357e-05,2]
[424308197,1780761032000,-1762.27580261,6.357e-05,2]
[424308243,1780761032000,-1762.27580261,6.357e-05,2]
[424308200,1780761032000,-1762.27580261,6.357e-05,2]
[424308207,1780761032000,-1762.27580261,6.357e-05,2]
[424308221,1780761032000,-1762.27580261,6.357e-05,2]
[424308206,1780761032000,-1762.27580261,6.357e-05,2]
[424308224,1780761032000,-1762.27580261,6.357e-05,2]
[424308217,1780761032000,-1762.27580261,6.357e-05,2]
[424308228,1780761032000,-1762.27580261,6.357e-05,2]
[424308230,1780761032000,-1762.27580261,6.357e-05,2]
[424308209,1780761032000,-1762.27580261,6.357e-05,2]
[424308213,1780761032000,-1762.27580261,6.357e-05,2]
[424308204,1780761032000,-1762.27580261,6.357e-05,2]